[Event "Blitz tournament"]
[Site "Biel, Switzerland"]
[Date "2021.07.31"]
[Round "7.4"]
[White "Lagarde, Maxime"]
[Black "Keymer, Vincent"]
[Result "1/2-1/2"]
[ECO "A28"]
[WhiteElo "2630"]
[BlackElo "2474"]
[PlyCount "137"]
[EventDate "2021.??.??"]
[EventType "blitz"]
[TimeControl "3+2"]
[WhiteClock "0:00:12"]
[BlackClock "0:00:07"]

1. c4 {[%emt 0:00:00]} Nf6 {[%emt 0:00:00]} 2. Nc3 {[%emt 0:00:00]} e5 {
[%emt 0:00:00]} 3. Nf3 {[%emt 0:00:00]} Nc6 {[%emt 0:00:00]} 4. e3 {[%emt 0:00:
00]} Bb4 {[%emt 0:00:00]} 5. Qc2 {[%emt 0:00:00]} Bxc3 {[%emt 0:00:00]} 6. bxc3
{[%emt 0:00:00]} O-O {[%emt 0:00:00]} 7. e4 {[%emt 0:00:00]} d6 {[%emt 0:00:00]
} 8. g3 {[%emt 0:00:00]} h6 {[%emt 0:00:00]} 9. Bg2 {[%emt 0:00:00]} Be6 {
[%emt 0:00:00]} 10. d3 {[%emt 0:00:00]} Qd7 {[%emt 0:00:00]} 11. O-O {[%emt 0:
00:00]} Ne7 {[%emt 0:00:00]} 12. Nh4 {[%emt 0:00:00]} g5 {[%emt 0:00:00]} 13.
f4 {[%emt 0:00:00]} gxh4 {[%emt 0:00:00]} 14. f5 {[%emt 0:00:00]} Kh7 {[%emt 0:
00:00]} 15. Qd2 {[%emt 0:00:00]} Neg8 {[%emt 0:00:00]} 16. fxe6 {[%emt 0:00:00]
} fxe6 {[%emt 0:00:00]} 17. gxh4 {[%emt 0:00:00]} Rf7 {[%emt 0:00:00]} 18. Qe2
{[%emt 0:00:00]} Raf8 {[%emt 0:00:00]} 19. Be3 {[%emt 0:00:00]} Ne7 {[%emt 0:
00:13]} 20. h5 {[%emt 0:00:00]} Qe8 {[%emt 0:00:05]} 21. Bh3 {[%emt 0:00:00]}
Nxh5 {[%emt 0:00:05]} 22. Bxe6 {[%emt 0:00:00]} Rg7+ {[%emt 0:00:11]} 23. Kh1 {
[%emt 0:00:01]} Nf4 {[%emt 0:00:02]} 24. Bxf4 {[%emt 0:00:04]} Rxf4 {[%emt 0:
00:03]} 25. Rxf4 {[%emt 0:00:19]} exf4 {[%emt 0:00:01]} 26. e5 {[%emt 0:00:01]}
Qc6+ {[%emt 0:00:08]} 27. Bd5 {[%emt 0:00:06]} Nxd5 {[%emt 0:00:01]} 28. Qe4+
Kh8 {[%emt 0:00:00]} 29. cxd5 {[%emt 0:00:11]} Qxc3 {[%emt 0:00:02]} 30. Re1 {
[%emt 0:00:13]} Qxe5 {[%emt 0:00:05]} 31. Qxe5 {[%emt 0:00:00]} dxe5 {[%emt 0:
00:01]} 32. Rxe5 {[%emt 0:00:01]} Kh7 {[%emt 0:00:05]} 33. Rf5 {[%emt 0:00:02]}
Rd7 {[%emt 0:00:03]} 34. Rxf4 {[%emt 0:00:01]} Kg6 {[%emt 0:00:00]} 35. Rc4 {
[%emt 0:00:07]} Kf5 {[%emt 0:00:04]} 36. d6 {[%emt 0:00:06]} c6 {[%emt 0:00:04]
} 37. Rd4 {[%emt 0:00:03]} Ke5 {[%emt 0:00:01]} 38. Re4+ {[%emt 0:00:01]} Kd5 {
[%emt 0:00:02]} 39. Kg2 {[%emt 0:00:02]} a6 {[%emt 0:00:04]} 40. Kf3 {[%emt 0:
00:01]} Rxd6 {[%emt 0:00:00]} 41. Re7 {[%emt 0:00:03]} b5 {[%emt 0:00:01]} 42.
Ra7 {[%emt 0:00:03]} Kd4 {[%emt 0:00:02]} 43. Rxa6 {[%emt 0:00:02]} Kxd3 {
[%emt 0:00:01]} 44. a4 {[%emt 0:00:01]} bxa4 {[%emt 0:00:03]} 45. Rxa4 {
[%emt 0:00:01]} c5 {[%emt 0:00:01]} 46. Ra3+ {[%emt 0:00:01]} Kd4 {[%emt 0:00:
02]} 47. Ke2 {[%emt 0:00:06]} Rg6 {[%emt 0:00:01]} 48. Rh3 {[%emt 0:00:04]} c4
{[%emt 0:00:01]} 49. Kd2 {[%emt 0:00:02]} Rg2+ {[%emt 0:00:03]} 50. Kc1 {
[%emt 0:00:00]} Rf2 {[%emt 0:00:05]} 51. Rxh6 {[%emt 0:00:03]} Kc3 {[%emt 0:00:
05]} 52. Rh3+ Kb4 53. Rg3 {[%emt 0:00:03]} Rxh2 {[%emt 0:00:01]} 54. Rf3 {
[%emt 0:00:02]} Rh1+ {[%emt 0:00:02]} 55. Kc2 {[%emt 0:00:01]} Ra1 {[%emt 0:00:
02]} 56. Kb2 {[%emt 0:00:02]} Ra8 {[%emt 0:00:01]} 57. Rh3 {[%emt 0:00:01]} Rd8
{[%emt 0:00:04]} 58. Kc2 {[%emt 0:00:02]} Rg8 {[%emt 0:00:01]} 59. Rf3 {
[%emt 0:00:02]} Rg1 {[%emt 0:00:02]} 60. Kb2 {[%emt 0:00:02]} Rg2+ {[%emt 0:00:
05]} 61. Kc1 {[%emt 0:00:01]} Ra2 {[%emt 0:00:01]} 62. Kb1 {[%emt 0:00:01]} Re2
{[%emt 0:00:04]} 63. Kc1 {[%emt 0:00:03]} Kc5 {[%emt 0:00:01]} 64. Rh3 {
[%emt 0:00:02]} Kd4 {[%emt 0:00:01]} 65. Rh4+ {[%emt 0:00:02]} Kc3 {[%emt 0:00:
02]} 66. Rh3+ {[%emt 0:00:01]} Kb4 {[%emt 0:00:01]} 67. Rg3 {[%emt 0:00:01]}
Rh2 {[%emt 0:00:01]} 68. Rf3 {[%emt 0:00:01]} c3 {[%emt 0:00:03]} 69. Rf8 {
[%emt 0:00:02]} 1/2-1/2

[Event "Blitz tournament"]
[Site "Biel, Switzerland"]
[Date "2021.07.31"]
[Round "8.1"]
[White "Kamsky, Gata"]
[Black "Alekseenko, Kirill"]
[Result "1/2-1/2"]
[ECO "D02"]
[WhiteElo "2644"]
[BlackElo "2580"]
[PlyCount "40"]
[EventDate "2021.??.??"]
[EventType "blitz"]
[TimeControl "3+2"]
[WhiteClock "0:02:22"]
[BlackClock "0:01:37"]

1. d4 {[%emt 0:00:00]} d5 {[%emt 0:00:00]} 2. Bf4 {[%emt 0:00:00]} Nf6 {
[%emt 0:00:00]} 3. e3 {[%emt 0:00:00]} e6 {[%emt 0:00:00]} 4. Nf3 {[%emt 0:00:
00]} c5 {[%emt 0:00:00]} 5. c3 {[%emt 0:00:00]} Nc6 {[%emt 0:00:00]} 6. Nbd2 {
[%emt 0:00:00]} Be7 {[%emt 0:00:00]} 7. Ne5 {[%emt 0:00:00]} O-O {[%emt 0:00:
00]} 8. Bd3 {[%emt 0:00:00]} Nd7 {[%emt 0:00:00]} 9. Nxd7 {[%emt 0:00:00]} Bxd7
{[%emt 0:00:00]} 10. O-O {[%emt 0:00:00]} c4 {[%emt 0:00:00]} 11. Be2 {[%emt 0:
00:00]} f5 {[%emt 0:00:00]} 12. a4 {[%emt 0:00:00]} a6 {[%emt 0:00:00]} 13. h3
{[%emt 0:00:00]} b5 {[%emt 0:00:00]} 14. b4 {[%emt 0:00:00]} Qb6 {[%emt 0:00:
00]} 15. a5 {[%emt 0:00:00]} Qd8 {[%emt 0:00:00]} 16. Rb1 {[%emt 0:00:00]} Be8
{[%emt 0:00:00]} 17. Nf3 {[%emt 0:00:00]} Bh5 {[%emt 0:00:00]} 18. Ne5 {
[%emt 0:00:00]} Nxe5 {[%emt 0:00:00]} 19. Bxe5 {[%emt 0:00:00]} Bxe2 {[%emt 0:
00:00]} 20. Qxe2 {[%emt 0:00:00]} Bf6 {[%emt 0:00:00]} 1/2-1/2

[Event "Blitz tournament"]
[Site "Biel, Switzerland"]
[Date "2021.07.31"]
[Round "8.3"]
[White "Gelfand, Boris"]
[Black "Lagarde, Maxime"]
[Result "0-1"]
[ECO "A81"]
[WhiteElo "2691"]
[BlackElo "2630"]
[PlyCount "57"]
[EventDate "2021.??.??"]
[EventType "blitz"]
[TimeControl "3+2"]
[WhiteClock "0:00:11"]
[BlackClock "0:00:07"]

1. d4 {[%emt 0:00:00]} f5 {[%emt 0:00:00]} 2. g3 {[%emt 0:00:00]} Nf6 {[%emt 0:
00:00]} 3. Bg2 {[%emt 0:00:00]} g6 {[%emt 0:00:00]} 4. Nf3 {[%emt 0:00:00]} Bg7
{[%emt 0:00:00]} 5. O-O {[%emt 0:00:00]} O-O {[%emt 0:00:00]} 6. a4 {[%emt 0:
00:00]} a5 {[%emt 0:00:00]} 7. c3 {[%emt 0:00:00]} b6 {[%emt 0:00:00]} 8. Ne5 {
[%emt 0:00:00]} d5 {[%emt 0:00:00]} 9. Nd2 {[%emt 0:00:00]} e6 {[%emt 0:00:00]}
10. Ndf3 {[%emt 0:00:00]} Ne4 {[%emt 0:00:00]} 11. h4 {[%emt 0:00:00]} Nd7 {
[%emt 0:00:00]} 12. Bf4 {[%emt 0:00:00]} Ndf6 {[%emt 0:00:00]} 13. Qc1 {
[%emt 0:00:00]} Ba6 {[%emt 0:00:00]} 14. Re1 {[%emt 0:00:00]} c5 {[%emt 0:00:
00]} 15. Bh6 {[%emt 0:00:00]} Rc8 {[%emt 0:00:00]} 16. Bxg7 {[%emt 0:00:00]}
Kxg7 {[%emt 0:00:00]} 17. Ng5 {[%emt 0:00:00]} Qd6 {[%emt 0:00:00]} 18. Qe3 {
[%emt 0:00:00]} h6 {[%emt 0:00:00]} 19. Nh3 {[%emt 0:00:00]} cxd4 {[%emt 0:00:
20]} 20. Qxd4 {[%emt 0:00:00]} Kh7 {[%emt 0:00:13]} 21. Bxe4 {[%emt 0:00:00]}
Nxe4 {[%emt 0:00:03]} 22. Nf4 {[%emt 0:00:00]} g5 {[%emt 0:00:02]} 23. hxg5 {
[%emt 0:00:00]} hxg5 {[%emt 0:00:01]} 24. Nfg6 {[%emt 0:00:00]} Rg8 {[%emt 0:
00:04]} 25. Kg2 {[%emt 0:00:00]} Rxg6 {[%emt 0:00:06]} 26. Rh1+ {[%emt 0:00:43]
} Kg7 {[%emt 0:00:01]} 27. Rh2 {[%emt 0:00:07]} Nf6 {[%emt 0:00:05]} 28. Rah1 {
[%emt 0:00:03]} Qc5 {[%emt 0:00:02]} 29. Qd2 {[%emt 0:00:10]} 0-1

[Event "Blitz tournament"]
[Site "Biel, Switzerland"]
[Date "2021.07.31"]
[Round "8.4"]
[White "Nihal, Sarin"]
[Black "Keymer, Vincent"]
[Result "0-1"]
[ECO "A01"]
[WhiteElo "2658"]
[BlackElo "2474"]
[PlyCount "100"]
[EventDate "2021.??.??"]
[EventType "blitz"]
[TimeControl "3+2"]
[WhiteClock "0:00:10"]
[BlackClock "0:00:08"]

1. b3 {[%emt 0:00:00]} d5 {[%emt 0:00:00]} 2. Bb2 {[%emt 0:00:00]} c6 {[%emt 0:
00:00]} 3. d3 {[%emt 0:00:00]} Bg4 {[%emt 0:00:00]} 4. Nd2 {[%emt 0:00:00]} Nd7
{[%emt 0:00:00]} 5. h3 {[%emt 0:00:00]} Bh5 {[%emt 0:00:00]} 6. Ngf3 {[%emt 0:
00:00]} Ngf6 {[%emt 0:00:00]} 7. g4 {[%emt 0:00:00]} Bg6 {[%emt 0:00:00]} 8.
Nh4 {[%emt 0:00:00]} e5 {[%emt 0:00:00]} 9. e3 {[%emt 0:00:00]} Bd6 {[%emt 0:
00:00]} 10. Bg2 {[%emt 0:00:00]} Nc5 {[%emt 0:00:00]} 11. Nxg6 {[%emt 0:00:00]}
hxg6 {[%emt 0:00:00]} 12. Qe2 {[%emt 0:00:00]} Ne6 {[%emt 0:00:00]} 13. a3 {
[%emt 0:00:00]} Qe7 {[%emt 0:00:00]} 14. c4 {[%emt 0:00:00]} a5 {[%emt 0:00:00]
} 15. h4 {[%emt 0:00:00]} g5 {[%emt 0:00:00]} 16. hxg5 {[%emt 0:00:00]} Rxh1+ {
[%emt 0:00:00]} 17. Bxh1 {[%emt 0:00:00]} Nxg5 {[%emt 0:00:00]} 18. cxd5 {
[%emt 0:00:00]} cxd5 {[%emt 0:00:00]} 19. Nf3 {[%emt 0:00:00]} Nxf3+ {[%emt 0:
00:00]} 20. Qxf3 {[%emt 0:00:00]} Rc8 {[%emt 0:00:00]} 21. g5 {[%emt 0:00:14]}
Nd7 {[%emt 0:00:00]} 22. Rc1 {[%emt 0:00:13]} Rxc1+ 23. Bxc1 {[%emt 0:00:01]}
Qxg5 {[%emt 0:00:15]} 24. Bd2 {[%emt 0:00:12]} Nf6 {[%emt 0:00:10]} 25. Qh3 {
[%emt 0:00:01]} Ke7 {[%emt 0:00:09]} 26. Bxa5 {[%emt 0:00:04]} e4 {[%emt 0:00:
04]} 27. dxe4 {[%emt 0:00:12]} dxe4 {[%emt 0:00:02]} 28. Bc3 {[%emt 0:00:00]}
Qg1+ {[%emt 0:00:05]} 29. Qf1 {[%emt 0:00:05]} Qg5 {[%emt 0:00:05]} 30. Qh3 {
[%emt 0:00:03]} Nd5 {[%emt 0:00:08]} 31. Bd2 {[%emt 0:00:01]} f5 {[%emt 0:00:
03]} 32. b4 {[%emt 0:00:02]} Be5 {[%emt 0:00:01]} 33. Qg2 {[%emt 0:00:01]} Qh6
{[%emt 0:00:02]} 34. Qf1 {[%emt 0:00:02]} Kf6 {[%emt 0:00:04]} 35. Bg2 {
[%emt 0:00:01]} Qh2 {[%emt 0:00:00]} 36. Qh1 {[%emt 0:00:02]} Qxh1+ {[%emt 0:
00:03]} 37. Bxh1 {[%emt 0:00:01]} Bb2 {[%emt 0:00:04]} 38. a4 {[%emt 0:00:00]}
Bc3 {[%emt 0:00:02]} 39. Bxc3+ {[%emt 0:00:06]} Nxc3 {[%emt 0:00:00]} 40. a5 {
[%emt 0:00:01]} Ke5 {[%emt 0:00:02]} 41. f3 {[%emt 0:00:02]} Kd5 {[%emt 0:00:
03]} 42. Kd2 {[%emt 0:00:02]} Kc4 {[%emt 0:00:03]} 43. fxe4 {[%emt 0:00:04]}
Nxe4+ {[%emt 0:00:01]} 44. Ke2 {[%emt 0:00:03]} Ng3+ {[%emt 0:00:01]} 45. Kf3 {
[%emt 0:00:01]} Nxh1 {[%emt 0:00:01]} 46. Kf4 {[%emt 0:00:01]} g6 {[%emt 0:00:
05]} 47. Kg5 {[%emt 0:00:01]} Kxb4 {[%emt 0:00:03]} 48. Kxg6 {[%emt 0:00:01]}
Ng3 {[%emt 0:00:01]} 49. Kg5 {[%emt 0:00:00]} Kxa5 {[%emt 0:00:01]} 50. Kf4 {
[%emt 0:00:01]} Nf1 {[%emt 0:00:02]} 0-1

[Event "Blitz tournament"]
[Site "Biel, Switzerland"]
[Date "2021.07.31"]
[Round "9.1"]
[White "Nihal, Sarin"]
[Black "Kamsky, Gata"]
[Result "1-0"]
[ECO "D02"]
[WhiteElo "2658"]
[BlackElo "2644"]
[PlyCount "76"]
[EventDate "2021.??.??"]
[EventType "blitz"]
[TimeControl "3+2"]
[WhiteClock "0:00:26"]
[BlackClock "0:00:09"]

1. d4 {[%emt 0:00:00]} d5 {[%emt 0:00:00]} 2. Nf3 {[%emt 0:00:00]} Nf6 {
[%emt 0:00:00]} 3. Bf4 {[%emt 0:00:00]} e6 {[%emt 0:00:00]} 4. e3 {[%emt 0:00:
00]} Bd6 {[%emt 0:00:00]} 5. Bg3 {[%emt 0:00:00]} O-O {[%emt 0:00:00]} 6. Nbd2
{[%emt 0:00:00]} c5 {[%emt 0:00:00]} 7. c3 {[%emt 0:00:00]} Qc7 {[%emt 0:00:00]
} 8. dxc5 {[%emt 0:00:00]} Qxc5 {[%emt 0:00:00]} 9. Bd3 {[%emt 0:00:00]} Nbd7 {
[%emt 0:00:00]} 10. e4 {[%emt 0:00:00]} dxe4 {[%emt 0:00:00]} 11. Nxe4 {
[%emt 0:00:00]} Nxe4 {[%emt 0:00:00]} 12. Bxe4 {[%emt 0:00:00]} Bxg3 {[%emt 0:
00:00]} 13. hxg3 {[%emt 0:00:00]} Nf6 {[%emt 0:00:00]} 14. Qe2 {[%emt 0:00:00]}
a5 {[%emt 0:00:00]} 15. Ne5 {[%emt 0:00:00]} h6 {[%emt 0:00:00]} 16. Bf3 {
[%emt 0:00:00]} Nd7 {[%emt 0:00:00]} 17. Nd3 {[%emt 0:00:00]} Qc7 {[%emt 0:00:
00]} 18. Qe3 {[%emt 0:00:00]} Ra6 {[%emt 0:00:00]} 19. O-O {[%emt 0:00:00]} b5
{[%emt 0:00:00]} 20. Rfd1 {[%emt 0:00:00]} Bb7 {[%emt 0:00:02]} 21. Bxb7 {
[%emt 0:00:00]} Qxb7 {[%emt 0:00:00]} 22. Rd2 {[%emt 0:00:00]} Rc8 {[%emt 0:00:
05]} 23. Rad1 {[%emt 0:00:00]} b4 {[%emt 0:00:04]} 24. Nxb4 {[%emt 0:00:00]}
axb4 {[%emt 0:00:06]} 25. Rxd7 {[%emt 0:00:00]} Rc7 {[%emt 0:00:08]} 26. Rd8+ {
[%emt 0:00:00]} Kh7 {[%emt 0:00:01]} 27. Rf8 {[%emt 0:00:00]} bxc3 {[%emt 0:00:
06]} 28. bxc3 {[%emt 0:00:00]} Rxa2 {[%emt 0:00:03]} 29. Qd3+ {[%emt 0:00:00]}
f5 {[%emt 0:00:02]} 30. Qd8 {[%emt 0:00:00]} Re7 {[%emt 0:00:07]} 31. Rf1 {
[%emt 0:00:25]} Qd7 {[%emt 0:00:04]} 32. Rh8+ {[%emt 0:00:04]} Kg6 {[%emt 0:00:
01]} 33. Qg8 {[%emt 0:00:01]} Rf7 {[%emt 0:00:04]} 34. Re1 {[%emt 0:00:12]} Kf6
{[%emt 0:00:06]} 35. Qb8 {[%emt 0:00:02]} Qc7 {[%emt 0:00:04]} 36. Qb4 {
[%emt 0:00:03]} e5 {[%emt 0:00:09]} 37. Qh4+ {[%emt 0:00:10]} Kg6 {[%emt 0:00:
01]} 38. g4 {[%emt 0:00:01]} fxg4 {[%emt 0:00:10]} 1-0

[Event "Blitz tournament"]
[Site "Biel, Switzerland"]
[Date "2021.07.31"]
[Round "9.2"]
[White "Keymer, Vincent"]
[Black "Gelfand, Boris"]
[Result "1/2-1/2"]
[ECO "A34"]
[WhiteElo "2474"]
[BlackElo "2691"]
[PlyCount "84"]
[EventDate "2021.??.??"]
[EventType "blitz"]
[TimeControl "3+2"]
[WhiteClock "0:00:08"]
[BlackClock "0:00:07"]

1. Nf3 {[%emt 0:00:00]} c5 {[%emt 0:00:00]} 2. c4 {[%emt 0:00:00]} Nf6 {
[%emt 0:00:00]} 3. Nc3 {[%emt 0:00:00]} Nc6 {[%emt 0:00:00]} 4. g3 {[%emt 0:00:
00]} d5 {[%emt 0:00:00]} 5. d4 {[%emt 0:00:00]} cxd4 {[%emt 0:00:00]} 6. Nxd4 {
[%emt 0:00:00]} dxc4 {[%emt 0:00:00]} 7. Nxc6 {[%emt 0:00:00]} Qxd1+ {[%emt 0:
00:00]} 8. Nxd1 {[%emt 0:00:00]} bxc6 {[%emt 0:00:00]} 9. Bd2 {[%emt 0:00:00]}
Rb8 {[%emt 0:00:00]} 10. f3 {[%emt 0:00:00]} e5 {[%emt 0:00:00]} 11. e4 {
[%emt 0:00:00]} Be6 {[%emt 0:00:00]} 12. Rc1 {[%emt 0:00:00]} c3 {[%emt 0:00:
00]} 13. Rxc3 {[%emt 0:00:00]} Bb4 {[%emt 0:00:00]} 14. Rxc6 {[%emt 0:00:00]}
Bxd2+ {[%emt 0:00:00]} 15. Kxd2 {[%emt 0:00:00]} Bxa2 {[%emt 0:00:00]} 16. Ra6
{[%emt 0:00:00]} Bb3 {[%emt 0:00:00]} 17. Nc3 {[%emt 0:00:00]} O-O {[%emt 0:00:
00]} 18. Rxa7 {[%emt 0:00:00]} Rfd8+ {[%emt 0:00:00]} 19. Ke3 {[%emt 0:00:00]}
Nd7 {[%emt 0:00:00]} 20. Bb5 {[%emt 0:00:00]} Nc5 {[%emt 0:00:00]} 21. Rc1 {
[%emt 0:00:06]} Be6 {[%emt 0:00:00]} 22. b4 {[%emt 0:00:12]} Nb3 {[%emt 0:00:
00]} 23. Rb1 {[%emt 0:00:13]} h6 {[%emt 0:00:21]} 24. h4 {[%emt 0:00:08]} Kh8 {
[%emt 0:00:11]} 25. Bd3 {[%emt 0:00:04]} Rxb4 {[%emt 0:00:09]} 26. Nd5 {
[%emt 0:00:01]} Rbb8 {[%emt 0:00:01]} 27. f4 {[%emt 0:00:06]} exf4+ {[%emt 0:
00:02]} 28. gxf4 {[%emt 0:00:01]} Nc5 {[%emt 0:00:01]} 29. Rxb8 {[%emt 0:00:04]
} Rxb8 {[%emt 0:00:01]} 30. Bc4 {[%emt 0:00:06]} f5 {[%emt 0:00:07]} 31. exf5 {
[%emt 0:00:03]} Bxf5 {[%emt 0:00:01]} 32. Kd4 {[%emt 0:00:03]} Nd7 {[%emt 0:00:
05]} 33. Ne7 {[%emt 0:00:01]} Bg4 {[%emt 0:00:03]} 34. Ng6+ {[%emt 0:00:02]}
Kh7 {[%emt 0:00:01]} 35. Bd3 {[%emt 0:00:02]} Nf6 {[%emt 0:00:05]} 36. Ne5+ {
[%emt 0:00:03]} Kh8 {[%emt 0:00:02]} 37. Ng6+ {[%emt 0:00:02]} Kg8 {[%emt 0:00:
03]} 38. Ne5 {[%emt 0:00:03]} Rd8+ {[%emt 0:00:03]} 39. Ke3 {[%emt 0:00:03]}
Nd5+ {[%emt 0:00:02]} 40. Ke4 {[%emt 0:00:00]} Nf6+ {[%emt 0:00:01]} 41. Ke3 {
[%emt 0:00:01]} Nd5+ {[%emt 0:00:02]} 42. Ke4 {[%emt 0:00:00]} Nf6+ {[%emt 0:
00:04]} 1/2-1/2

[Event "Blitz tournament"]
[Site "Biel, Switzerland"]
[Date "2021.07.31"]
[Round "9.4"]
[White "Studer, Noël"]
[Black "Alekseenko, Kirill"]
[Result "0-1"]
[ECO "D22"]
[WhiteElo "2451"]
[BlackElo "2580"]
[PlyCount "60"]
[EventDate "2021.??.??"]
[EventType "blitz"]
[TimeControl "3+2"]
[WhiteClock "0:00:04"]
[BlackClock "0:00:32"]

1. d4 {[%emt 0:00:00]} d5 {[%emt 0:00:00]} 2. c4 {[%emt 0:00:00]} dxc4 {
[%emt 0:00:00]} 3. Nf3 {[%emt 0:00:00]} a6 {[%emt 0:00:00]} 4. e3 {[%emt 0:00:
00]} Bg4 {[%emt 0:00:00]} 5. Bxc4 {[%emt 0:00:00]} e6 {[%emt 0:00:00]} 6. Nc3 {
[%emt 0:00:00]} Nc6 {[%emt 0:00:00]} 7. O-O {[%emt 0:00:00]} Nf6 {[%emt 0:00:
00]} 8. Re1 {[%emt 0:00:00]} Be7 {[%emt 0:00:00]} 9. h3 {[%emt 0:00:00]} Bh5 {
[%emt 0:00:00]} 10. a3 {[%emt 0:00:00]} O-O {[%emt 0:00:00]} 11. g4 {[%emt 0:
00:00]} Bg6 {[%emt 0:00:00]} 12. e4 {[%emt 0:00:00]} b5 {[%emt 0:00:00]} 13.
Bf1 {[%emt 0:00:00]} b4 {[%emt 0:00:00]} 14. axb4 {[%emt 0:00:00]} Bxb4 {
[%emt 0:00:00]} 15. Bg5 {[%emt 0:00:00]} Ne7 {[%emt 0:00:00]} 16. Bxf6 {
[%emt 0:00:00]} gxf6 {[%emt 0:00:00]} 17. Rxa6 {[%emt 0:00:00]} Rxa6 {[%emt 0:
00:03]} 18. Bxa6 Qa8 {[%emt 0:00:00]} 19. Bd3 {[%emt 0:00:00]} Rd8 {[%emt 0:00:
00]} 20. h4 {[%emt 0:00:00]} h5 {[%emt 0:00:00]} 21. g5 {[%emt 0:00:00]} fxg5 {
[%emt 0:00:00]} 22. hxg5 {[%emt 0:00:00]} c5 {[%emt 0:00:00]} 23. Qb3 {[%emt 0:
00:00]} Qb8 {[%emt 0:00:00]} 24. Rd1 {[%emt 0:00:35]} Qf4 {[%emt 0:00:00]} 25.
Be2 {[%emt 0:00:02]} h4 {[%emt 0:00:00]} 26. Nb5 {[%emt 0:00:16]} Bxe4 {
[%emt 0:00:00]} 27. Qe3 {[%emt 0:00:02]} Qg4+ {[%emt 0:00:06]} 28. Kh2 {
[%emt 0:00:02]} Nd5 {[%emt 0:00:18]} 29. Qb3 {[%emt 0:00:03]} c4 {[%emt 0:00:
07]} 30. Rg1 {[%emt 0:00:04]} Qf4+ {[%emt 0:00:02]} 0-1

[Event "Blitz tournament"]
[Site "Biel, Switzerland"]
[Date "2021.07.31"]
[Round "10.1"]
[White "Kamsky, Gata"]
[Black "Studer, Noël"]
[Result "0-1"]
[ECO "C43"]
[WhiteElo "2644"]
[BlackElo "2451"]
[PlyCount "92"]
[EventDate "2021.??.??"]
[EventType "blitz"]
[TimeControl "3+2"]
[WhiteClock "0:00:47"]
[BlackClock "0:00:05"]

1. e4 {[%emt 0:00:00]} e5 {[%emt 0:00:00]} 2. Nf3 {[%emt 0:00:00]} Nf6 {
[%emt 0:00:00]} 3. d4 {[%emt 0:00:00]} Nxe4 {[%emt 0:00:00]} 4. Bd3 {[%emt 0:
00:00]} d5 {[%emt 0:00:00]} 5. Nxe5 {[%emt 0:00:00]} Bd6 {[%emt 0:00:00]} 6.
O-O {[%emt 0:00:00]} O-O {[%emt 0:00:00]} 7. Bxe4 {[%emt 0:00:00]} dxe4 {
[%emt 0:00:00]} 8. Nc3 {[%emt 0:00:00]} Bf5 {[%emt 0:00:00]} 9. Nc4 {[%emt 0:
00:00]} Bg6 {[%emt 0:00:00]} 10. Re1 {[%emt 0:00:00]} Re8 {[%emt 0:00:00]} 11.
Nxd6 {[%emt 0:00:00]} Qxd6 {[%emt 0:00:00]} 12. Nb5 {[%emt 0:00:00]} Qd7 {
[%emt 0:00:00]} 13. c4 {[%emt 0:00:00]} a6 {[%emt 0:00:00]} 14. Nc3 {[%emt 0:
00:00]} Nc6 {[%emt 0:00:00]} 15. Nd5 {[%emt 0:00:00]} b5 {[%emt 0:00:00]} 16.
b3 {[%emt 0:00:00]} bxc4 {[%emt 0:00:00]} 17. bxc4 {[%emt 0:00:00]} Na5 {
[%emt 0:00:00]} 18. Bf4 {[%emt 0:00:00]} Nxc4 {[%emt 0:00:00]} 19. Nxc7 {
[%emt 0:00:00]} Nb2 {[%emt 0:00:00]} 20. Qd2 {[%emt 0:00:00]} Nd3 {[%emt 0:00:
00]} 21. Nxe8 {[%emt 0:00:00]} Nxe1 {[%emt 0:00:00]} 22. Nf6+ {[%emt 0:00:00]}
gxf6 {[%emt 0:00:00]} 23. Rxe1 {[%emt 0:00:00]} Qd5 {[%emt 0:00:00]} 24. Bh6 {
[%emt 0:00:00]} Rd8 {[%emt 0:00:02]} 25. Rc1 {[%emt 0:00:00]} Qd7 {[%emt 0:00:
25]} 26. h3 {[%emt 0:00:00]} Rc8 {[%emt 0:00:01]} 27. Rxc8+ {[%emt 0:00:00]}
Qxc8 {[%emt 0:00:01]} 28. Qf4 {[%emt 0:00:00]} Qd8 {[%emt 0:00:07]} 29. d5 {
[%emt 0:00:00]} f5 {[%emt 0:00:01]} 30. Qe5 {[%emt 0:00:00]} f6 {[%emt 0:00:01]
} 31. Qe6+ {[%emt 0:00:09]} Bf7 {[%emt 0:00:02]} 32. Qxf5 {[%emt 0:00:01]} Bxd5
{[%emt 0:00:10]} 33. Qg4+ {[%emt 0:00:01]} Kf7 {[%emt 0:00:01]} 34. a3 {
[%emt 0:00:02]} Bc6 {[%emt 0:00:15]} 35. Qg7+ {[%emt 0:00:05]} Ke6 {[%emt 0:00:
01]} 36. Bf4 {[%emt 0:00:06]} Qd7 {[%emt 0:00:08]} 37. Qg8+ {[%emt 0:00:03]}
Qf7 {[%emt 0:00:02]} 38. Qc8+ {[%emt 0:00:03]} Qd7 {[%emt 0:00:02]} 39. Qxa6 {
[%emt 0:00:01]} Kf7 {[%emt 0:00:01]} 40. Kh2 {[%emt 0:00:03]} Kg6 {[%emt 0:00:
01]} 41. Qb6 {[%emt 0:00:05]} Qd5 {[%emt 0:00:02]} 42. Qe3 {[%emt 0:00:02]} h5
{[%emt 0:00:01]} 43. Qg3+ {[%emt 0:00:03]} Kf7 {[%emt 0:00:01]} 44. Be3 {
[%emt 0:00:04]} Ke6 {[%emt 0:00:04]} 45. Qg8+ {[%emt 0:00:02]} Ke7 {[%emt 0:00:
05]} 46. Bf4 {[%emt 0:00:03]} Qxg8 {[%emt 0:00:01]} 0-1